bitfinex-derivatives/quotes_BTCF0:USTF0_20260207
["timestamp","ask_amount","ask_price","bid_price","bid_amount"]
[1770478563789,0.014379,69610.0,69594.0,0.29419729]
[1770478564090,0.014379,69610.0,69587.0,0.28646055]
[1770478564293,0.57335541,69614.0,69589.0,0.014384]
[1770478564491,0.57335541,69609.0,69594.0,0.28660023]
[1770478564686,0.014376,69627.0,69581.0,0.00015644]
[1770478564687,0.57335541,69598.0,69581.0,0.00015644]
[1770478565190,0.57335541,69594.0,69567.0,0.28760736]
[1770478565486,0.58774041,69585.0,69566.0,0.0002]
[1770478565691,0.014385,69582.0,69558.0,0.01439]
[1770478565987,0.014386,69578.0,69553.0,0.29707815]
[1770478566187,0.00016323,69577.0,69553.0,0.29707815]
[1770478566494,0.56305127,69574.0,69548.0,0.0002]
[1770478566695,0.57743827,69572.0,69543.0,0.014393]
[1770478566886,0.5632145,69571.0,69543.0,0.014393]
[1770478567082,0.014388,69569.0,69543.0,0.014393]
[1770478567288,0.56305127,69567.0,69539.0,0.014394]
[1770478567791,0.071922,69587.0,69539.0,0.014394]
[1770478567792,0.56305127,69563.0,69539.0,0.014394]
[1770478568092,0.56305127,69554.0,69527.0,0.0002]
[1770478568294,0.014392,69550.0,69527.0,0.014596]
[1770478568491,0.086324,69573.0,69527.0,0.28567015]
[1770478568492,0.00011325,69549.0,69527.0,0.28567015]
[1770478568687,0.56305127,69543.0,69518.0,0.00016929]
[1770478568888,0.56305127,69540.0,69518.0,0.00016929]
[1770478569084,0.014395,69536.0,69518.0,0.00016929]
[1770478569290,0.57744627,69536.0,69518.0,0.00016929]
[1770478569492,0.56305127,69560.0,69522.0,0.41406797]
[1770478569689,0.014393,69546.0,69521.0,0.014398]
[1770478569992,0.014389,69564.0,69518.0,0.00016929]
[1770478569993,0.56305127,69543.0,69518.0,0.00016929]
[1770478570589,0.55513416,69534.0,69518.0,0.00016929]
[1770478570784,0.56952916,69534.0,69518.0,0.00016929]
[1770478570984,0.55513416,69534.0,69518.0,0.00016929]
[1770478571192,0.55513416,69546.0,69518.0,0.00016929]
[1770478571391,0.014394,69541.0,69518.0,0.00016929]
[1770478571591,0.014394,69541.0,69519.0,0.014398]
[1770478571990,0.014393,69545.0,69519.0,0.014398]
[1770478572692,0.014393,69545.0,69526.0,0.0002]
[1770478572894,0.55513416,69558.0,69526.0,0.41447049]
[1770478573197,0.014389,69563.0,69531.0,0.41427049]
[1770478573496,0.014389,69563.0,69538.0,0.014394]
[1770478573700,0.55513416,69567.0,69540.0,0.014394]
[1770478573899,0.014389,69566.0,69540.0,0.014394]
[1770478574102,0.01439,69559.0,69539.0,0.0002]
[1770478574404,0.071924,69586.0,69541.0,0.014394]
[1770478574405,0.014388,69568.0,69541.0,0.014394]
[1770478574704,0.014387,69572.0,69539.0,0.0002]
[1770478574908,0.014387,69572.0,69536.0,0.41104276]
[1770478575301,0.014387,69574.0,69536.0,0.41104276]
[1770478575605,0.014387,69575.0,69553.0,0.014391]
[1770478576696,0.55513416,69587.0,69545.0,0.41265695]
[1770478576901,0.56951816,69587.0,69560.0,0.01439]
[1770478577111,0.55513416,69584.0,69554.0,0.014391]
[1770478577297,0.55513416,69584.0,69558.0,0.01439]
[1770478577602,0.014385,69582.0,69555.0,0.01439]
[1770478577808,0.014386,69579.0,69555.0,0.01439]
[1770478578403,0.014387,69573.0,69551.0,0.014391]
[1770478578701,0.55513416,69569.0,69547.0,0.0002]
[1770478578907,0.55513416,69564.0,69547.0,0.0002]
[1770478579106,0.56952316,69564.0,69547.0,0.0002]
[1770478579297,0.56952316,69564.0,69539.0,0.014394]
[1770478579501,0.01439,69561.0,69539.0,0.014394]
[1770478579705,0.01439,69561.0,69535.0,0.014395]
[1770478579903,0.56952416,69561.0,69538.0,0.014394]
[1770478580098,0.55513416,69561.0,69534.0,0.014395]
[1770478580308,0.55513416,69561.0,69533.0,0.0002]
[1770478580309,0.55513416,69558.0,69537.0,0.014394]
[1770478580705,0.56952416,69558.0,69533.0,0.014395]
[1770478580906,0.56952416,69558.0,69536.0,0.014395]
[1770478581202,0.55513416,69558.0,69536.0,0.014395]
[1770478581407,0.01439,69557.0,69535.0,0.014395]
[1770478581601,0.014391,69554.0,69532.0,0.0002]
[1770478581809,0.014391,69554.0,69533.0,0.014395]
[1770478582108,0.56952516,69554.0,69533.0,0.014395]
[1770478582303,0.56952516,69554.0,69532.0,0.0002]
[1770478582604,0.56952616,69551.0,69532.0,0.0002]
[1770478582904,0.55513416,69542.0,69523.0,0.014397]
[1770478583701,0.55513416,69575.0,69529.0,0.4130331]
[1770478583906,0.014392,69550.0,69529.0,0.4274291]
[1770478584210,0.14448304,69600.0,69518.0,0.00016929]
[1770478584211,0.55513416,69536.0,69518.0,0.00016929]
[1770478584411,0.014395,69535.0,69518.0,0.00016929]
[1770478584605,0.55513416,69536.0,69518.0,0.00016929]
[1770478584813,0.55513416,69532.0,69509.0,0.0144]
[1770478585011,0.014396,69528.0,69509.0,0.0144]
[1770478585403,0.014392,69551.0,69521.0,0.42167735]
[1770478585606,0.55513416,69556.0,69521.0,0.42167735]
[1770478585806,0.00016545,69550.0,69521.0,0.42167735]
[1770478586116,0.01455745,69550.0,69526.0,0.014397]
[1770478586311,0.01455745,69550.0,69521.0,0.42167735]
[1770478586312,0.01455745,69550.0,69529.0,0.014396]
[1770478586512,0.01455745,69550.0,69521.0,0.42167735]
[1770478586513,0.014393,69547.0,69524.0,0.014397]
[1770478586710,0.0001738,69546.0,69524.0,0.014397]
[1770478587107,0.0001738,69546.0,69527.0,0.014396]
[1770478587307,0.0001738,69546.0,69530.0,0.0002]
[1770478587499,0.0001738,69546.0,69527.0,0.014396]
[1770478587500,0.55513416,69562.0,69536.0,0.014394]
[1770478587701,0.014388,69569.0,69529.0,0.014396]
[1770478587919,0.014391,69552.0,69532.0,0.014395]
[1770478588608,0.55513416,69559.0,69534.0,0.014395]
[1770478588806,0.55513416,69553.0,69526.0,0.0002]
[1770478589111,0.01439,69557.0,69499.0,0.014402]
[1770478589112,0.014395,69536.0,69516.0,0.014399]
[1770478589509,0.014395,69534.0,69516.0,0.014399]
[1770478589706,0.014395,69534.0,69517.0,0.0002]
[1770478589916,0.014396,69532.0,69517.0,0.0002]
[1770478590207,0.56952916,69536.0,69517.0,0.0002]
[1770478590410,0.55513416,69559.0,69518.0,0.014398]
[1770478590604,0.01439,69557.0,69519.0,0.5689608]
[1770478590805,0.01439,69557.0,69531.0,0.0002]
[1770478591512,0.014391,69554.0,69531.0,0.0002]
[1770478591716,0.014391,69554.0,69535.0,0.014395]
[1770478591911,0.014391,69554.0,69537.0,0.014394]
[1770478592301,0.55513416,69559.0,69537.0,0.014394]
[1770478592302,0.01439,69557.0,69537.0,0.014394]
[1770478592507,0.55513416,69559.0,69534.0,0.014395]
[1770478592705,0.55513416,69559.0,69536.0,0.014394]
[1770478592706,0.014391,69554.0,69536.0,0.014394]
[1770478593108,0.014391,69554.0,69536.0,0.014395]
[1770478594214,0.014391,69552.0,69536.0,0.014395]
[1770478594516,0.55513416,69559.0,69536.0,0.014395]
[1770478594517,0.014391,69553.0,69536.0,0.014395]
[1770478595420,0.014391,69554.0,69535.0,0.014395]
[1770478595915,0.014392,69548.0,69524.0,0.5691608]
[1770478596315,0.014392,69548.0,69524.0,0.5689608]
[1770478597308,0.55513416,69559.0,69539.0,0.014394]
[1770478598422,0.014391,69556.0,69539.0,0.014394]
[1770478599219,0.014391,69556.0,69527.0,0.014396]
[1770478599220,0.014389,69562.0,69544.0,0.014393]
[1770478600427,0.57848336,69580.0,69544.0,0.56038002]
[1770478600726,0.57848336,69580.0,69558.0,0.01439]
[1770478601121,0.014386,69576.0,69558.0,0.01439]
[1770478601316,0.57848336,69562.0,69545.0,0.0002]
[1770478601517,0.014391,69555.0,69538.0,0.014394]
[1770478601825,0.014389,69561.0,69544.0,0.014393]
[1770478602424,0.57848336,69562.0,69546.0,0.014392]
[1770478602623,0.014388,69566.0,69536.0,0.56038002]
[1770478602925,0.014389,69564.0,69538.0,0.56038002]
[1770478603224,0.57848336,69572.0,69545.0,0.014393]
[1770478603620,0.001,69576.0,69534.0,0.0002]
[1770478603621,0.57848336,69561.0,69534.0,0.0002]
[1770478603816,0.001,69576.0,69534.0,0.0002]
[1770478603817,0.014392,69550.0,69534.0,0.0002]
[1770478604016,0.14498944,69570.0,69525.0,0.56038002]
[1770478604017,0.57848336,69556.0,69525.0,0.56038002]
[1770478604226,0.014392,69547.0,69526.0,0.014397]
[1770478604424,0.014392,69547.0,69536.0,0.001]
[1770478604617,0.014393,69545.0,69536.0,0.001]
[1770478605324,0.014392,69548.0,69536.0,0.001]
[1770478606027,0.57848336,69552.0,69528.0,0.014396]
[1770478606528,0.014393,69546.0,69528.0,0.014396]
[1770478606929,0.014392,69549.0,69528.0,0.014396]
[1770478607932,0.57848336,69552.0,69528.0,0.014396]
[1770478608131,0.014393,69546.0,69525.0,0.014397]
[1770478608427,0.014393,69544.0,69525.0,0.014397]
[1770478608627,0.014394,69542.0,69522.0,0.014397]
[1770478608933,0.014394,69539.0,69522.0,0.014398]
[1770478609426,0.57848336,69554.0,69531.0,0.014396]
[1770478609628,0.01439,69560.0,69531.0,0.56038002]
[1770478610328,0.014391,69552.0,69531.0,0.56038002]
[1770478610527,0.014385,69582.0,69530.0,0.0002]
[1770478610528,0.014389,69564.0,69540.0,0.56038002]
[1770478610732,0.57848336,69576.0,69540.0,0.56038002]
[1770478610928,0.57848336,69573.0,69546.0,0.014393]
[1770478611124,0.57848336,69564.0,69534.0,0.014395]
[1770478611330,0.57848336,69560.0,69536.0,0.014395]
[1770478611634,0.014391,69554.0,69535.0,0.014395]
[1770478611820,0.01439,69557.0,69538.0,0.014394]
[1770478612025,0.014389,69564.0,69546.0,0.014393]
[1770478612434,0.014389,69565.0,69544.0,0.014393]
[1770478612634,0.57848336,69570.0,69547.0,0.014392]
[1770478612635,0.014388,69568.0,69547.0,0.014392]
[1770478612935,0.014388,69569.0,69549.0,0.014392]
[1770478613136,0.014389,69564.0,69545.0,0.014393]
[1770478613333,0.014388,69568.0,69537.0,0.56038002]
[1770478613831,0.014388,69568.0,69539.0,0.56058002]
[1770478614040,0.014388,69568.0,69541.0,0.56038002]
[1770478614328,0.014388,69568.0,69548.0,0.014392]
[1770478614535,0.014387,69574.0,69545.0,0.56038002]
[1770478614743,0.014388,69569.0,69549.0,0.014392]
[1770478615230,0.014388,69571.0,69545.0,0.56038002]
[1770478615427,0.014384,69587.0,69545.0,0.56038002]
[1770478615428,0.57848336,69577.0,69550.0,0.014392]
[1770478615627,0.014388,69570.0,69545.0,0.56038002]
[1770478616030,0.014387,69573.0,69552.0,0.014391]
[1770478616230,0.014387,69571.0,69552.0,0.014391]
[1770478616732,0.014387,69571.0,69545.0,0.56038002]
[1770478616733,0.014387,69572.0,69551.0,0.014391]
[1770478616929,0.014388,69567.0,69547.0,0.014392]
[1770478617130,0.014388,69568.0,69549.0,0.014392]
[1770478617832,0.59287136,69568.0,69549.0,0.014392]
[1770478618337,0.014392,69548.0,69532.0,0.005]
[1770478618534,0.014393,69546.0,69529.0,0.014396]
[1770478618741,0.014393,69546.0,69523.0,0.0052]
[1770478618742,0.014393,69543.0,69523.0,0.0052]
[1770478619237,0.014394,69541.0,69524.0,0.014397]
[1770478621439,0.014393,69544.0,69524.0,0.014397]
[1770478621639,0.014394,69542.0,69524.0,0.014397]
[1770478622340,0.57848336,69571.0,69527.0,0.56038002]
[1770478622537,0.57848336,69571.0,69553.0,0.014391]
[1770478622835,0.57848336,69581.0,69557.0,0.01439]
[1770478623042,0.57848336,69579.0,69548.0,0.56038002]
[1770478623338,0.57848336,69575.0,69548.0,0.56038002]
[1770478623541,0.014387,69574.0,69548.0,0.56038002]
[1770478624133,0.59287036,69574.0,69548.0,0.56038002]
[1770478624333,0.59287036,69574.0,69553.0,0.014391]
[1770478625641,0.57848336,69574.0,69549.0,0.014392]
[1770478626033,0.57848336,69574.0,69552.0,0.014391]
[1770478627043,0.014385,69584.0,69553.0,0.54748521]
[1770478627235,0.55266147,69588.0,69557.0,0.54768521]
[1770478627435,0.014384,69586.0,69565.0,0.014388]
[1770478627636,0.014385,69584.0,69562.0,0.014389]
[1770478627938,0.53827747,69588.0,69569.0,0.014388]
[1770478628150,0.014385,69585.0,69566.0,0.014388]
[1770478628343,0.53827747,69588.0,69557.0,0.54748521]
[1770478628541,0.53827747,69588.0,69561.0,0.54748521]
[1770478628743,0.014384,69587.0,69561.0,0.54748521]
[1770478629041,0.014385,69585.0,69566.0,0.014388]
[1770478629543,0.55266147,69588.0,69568.0,0.014388]
[1770478629751,0.55266147,69588.0,69561.0,0.54748521]
[1770478629752,0.53827747,69588.0,69578.0,0.28597983]
[1770478630039,0.014384,69588.0,69571.0,0.28382225]
[1770478630445,0.57711229,69613.0,69583.0,0.014385]
[1770478630645,0.014381,69604.0,69583.0,0.014385]
[1770478630942,0.59149329,69604.0,69583.0,0.014385]
[1770478631939,0.001,69588.0,69583.0,0.014385]
[1770478632139,0.59149329,69604.0,69583.0,0.014385]
[1770478632439,0.57711229,69612.0,69581.0,0.56537465]
[1770478632739,0.014372,69644.0,69578.0,0.29409574]
[1770478632740,0.57711229,69598.0,69578.0,0.29409574]
[1770478633242,0.57711229,69596.0,69578.0,0.29409574]
[1770478633540,0.57711229,69587.0,69571.0,0.28382225]
[1770478634739,0.014384,69586.0,69571.0,0.28382225]
[1770478634936,0.57711229,69597.0,69571.0,0.28382225]
[1770478635145,0.014383,69591.0,69578.0,0.28506374]
[1770478635345,0.014384,69588.0,69578.0,0.28506374]
[1770478636144,0.014384,69586.0,69578.0,0.28506374]
[1770478636536,0.014384,69586.0,69578.0,0.27590427]
[1770478637039,0.57711229,69597.0,69578.0,2.7e-07]
[1770478637249,0.014385,69585.0,69571.0,0.28382225]
[1770478638246,0.014385,69583.0,69571.0,0.28382225]
[1770478638640,0.57711229,69574.0,69555.0,0.0002]
[1770478639144,0.014388,69569.0,69559.0,0.28297896]
[1770478639646,0.014388,69569.0,69552.0,0.28191426]
[1770478639843,0.57711229,69568.0,69552.0,0.28191426]
[1770478640047,0.57711229,69568.0,69545.0,0.014393]
[1770478640241,0.014389,69562.0,69542.0,0.56537465]
[1770478640637,0.014389,69562.0,69541.0,0.014393]
[1770478640638,0.57711229,69578.0,69557.0,0.28413816]
[1770478640845,0.57711229,69587.0,69557.0,0.28413816]
[1770478641141,0.014388,69570.0,69557.0,0.28413816]
[1770478641338,0.57711229,69567.0,69550.0,0.28485757]
[1770478641542,0.014389,69563.0,69541.0,0.014393]
[1770478641839,0.014389,69563.0,69537.0,0.5655249]
[1770478641840,0.57711229,69563.0,69537.0,0.5655249]
[1770478642145,0.014388,69569.0,69537.0,0.00015025]
[1770478642146,0.014391,69554.0,69537.0,0.00015025]
[1770478642349,0.014391,69554.0,69537.0,0.28707589]
[1770478642643,0.014392,69551.0,69541.0,0.001]
[1770478642841,0.014392,69551.0,69537.0,0.28707589]
[1770478642842,0.57711229,69558.0,69537.0,0.00015025]
[1770478643044,0.57711229,69555.0,69537.0,0.00015025]
[1770478643240,0.014393,69547.0,69537.0,0.00015025]
[1770478643437,0.014393,69546.0,69537.0,2.5e-07]
[1770478643653,0.57711229,69555.0,69537.0,2.5e-07]
[1770478644249,0.014393,69544.0,69537.0,2.5e-07]
[1770478644551,0.00011527,69543.0,69537.0,2.5e-07]
[1770478645050,0.01450827,69543.0,69537.0,2.5e-07]
[1770478645442,0.00011527,69543.0,69537.0,2.5e-07]
[1770478645641,0.014388,69569.0,69537.0,2.5e-07]
[1770478645642,0.01439,69557.0,69537.0,2.5e-07]
[1770478645847,0.014389,69563.0,69540.0,0.56537465]
[1770478646144,0.014389,69563.0,69543.0,0.0002]
[1770478646449,0.014387,69571.0,69547.0,0.014392]
[1770478646951,0.57711229,69573.0,69551.0,0.014391]
[1770478647145,0.014382,69599.0,69547.0,0.56537465]
[1770478647146,0.014385,69582.0,69547.0,0.56537465]
[1770478647449,0.57711229,69583.0,69553.0,0.014391]
[1770478647645,0.014386,69578.0,69553.0,0.014391]
[1770478648151,0.014386,69578.0,69555.0,0.014391]
[1770478649244,0.014386,69576.0,69555.0,0.014391]
[1770478649746,0.014386,69579.0,69557.0,0.01439]
[1770478650148,0.014386,69576.0,69557.0,0.01439]
[1770478651956,0.014386,69576.0,69554.0,0.014391]
[1770478652456,0.57711229,69572.0,69541.0,0.014394]
[1770478652652,0.57711229,69566.0,69543.0,0.014393]
[1770478653154,0.57711229,69566.0,69540.0,0.014394]
[1770478653354,0.57711229,69566.0,69538.0,0.56537465]
[1770478653550,0.57711229,69566.0,69537.0,2.5e-07]
[1770478653551,0.01439,69557.0,69537.0,2.5e-07]
[1770478653743,0.071927,69583.0,69537.0,2.5e-07]
[1770478653744,0.014392,69547.0,69537.0,2.5e-07]
[1770478653950,0.01439,69560.0,69537.0,2.5e-07]
[1770478654144,0.014392,69547.0,69537.0,2.5e-07]
[1770478654453,0.57711229,69564.0,69545.0,0.014393]
[1770478654648,0.59150129,69564.0,69543.0,0.014393]
[1770478655450,0.014389,69562.0,69543.0,0.014393]
[1770478655650,0.001,69560.0,69543.0,0.014393]
[1770478657160,0.014389,69562.0,69543.0,0.014393]
[1770478657855,0.01439,69560.0,69540.0,0.014394]
[1770478658958,0.01439,69558.0,69540.0,0.014394]
[1770478659146,0.071925,69585.0,69537.0,2.5e-07]
[1770478659147,0.58035116,69556.0,69537.0,2.5e-07]
[1770478659353,0.58035116,69552.0,69537.0,2.5e-07]
[1770478659656,0.014393,69545.0,69537.0,2.5e-07]
[1770478659847,0.58035116,69552.0,69537.0,2.5e-07]
[1770478659848,0.014393,69543.0,69537.0,2.5e-07]
[1770478660048,0.014394,69542.0,69537.0,2.5e-07]
[1770478660353,0.58035116,69548.0,69537.0,2.5e-07]
[1770478660753,0.014393,69543.0,69537.0,2.5e-07]
[1770478661752,0.58035116,69548.0,69526.0,0.28466789]
[1770478661955,0.58035116,69544.0,69526.0,0.28466789]
[1770478662158,0.014394,69541.0,69526.0,0.28466789]
[1770478662359,0.014395,69537.0,69526.0,0.28466789]
[1770478662758,0.014395,69533.0,69514.0,0.014399]
[1770478662959,0.014395,69536.0,69516.0,0.014399]
[1770478663160,0.014395,69534.0,69516.0,0.014399]
[1770478663360,0.014396,69532.0,69513.0,0.014399]
[1770478663663,0.014396,69532.0,69510.0,0.0002]
[1770478663664,0.014396,69530.0,69510.0,0.0144]
[1770478663857,0.58035116,69542.0,69510.0,0.53647242]
[1770478664058,0.001,69543.0,69524.0,0.28769904]
[1770478664059,0.014394,69541.0,69524.0,0.28769904]
[1770478664463,0.014393,69544.0,69524.0,0.28769904]
[1770478664663,0.014392,69548.0,69525.0,0.53647242]
[1770478664957,0.014393,69544.0,69525.0,0.55086942]
[1770478665353,0.014394,69540.0,69524.0,0.28769904]
[1770478665958,0.014393,69543.0,69524.0,0.28769904]
[1770478666361,0.59474416,69543.0,69524.0,0.28769904]
[1770478666553,0.014394,69541.0,69524.0,0.28769904]
[1770478667064,0.014393,69544.0,69524.0,0.28769904]
[1770478668058,0.014393,69542.0,69524.0,0.28769904]
[1770478668663,0.58035116,69553.0,69524.0,0.28769904]
[1770478668664,0.014394,69540.0,69524.0,0.28769904]
[1770478669664,0.58035116,69544.0,69524.0,0.28769904]
[1770478669858,0.014394,69540.0,69524.0,0.28769904]
[1770478670164,0.014394,69538.0,69524.0,0.28769904]
[1770478670755,0.014395,69536.0,69518.0,0.014398]
[1770478671066,0.014395,69534.0,69517.0,0.28153797]
[1770478671460,0.014396,69532.0,69517.0,0.28153797]
[1770478671768,0.014396,69530.0,69517.0,0.28153797]
[1770478672469,0.014397,69526.0,69517.0,0.28153797]
[1770478672762,0.014397,69527.0,69517.0,0.28153797]
[1770478672960,0.014397,69527.0,69509.0,0.0144]
[1770478673175,0.014397,69527.0,69506.0,0.53647242]
[1770478673176,0.58035116,69531.0,69506.0,0.53647242]
[1770478673361,0.014392,69547.0,69506.0,0.53647242]
[1770478673362,0.58035116,69538.0,69506.0,0.53647242]
[1770478673554,0.014396,69530.0,69509.0,0.0144]
[1770478673758,0.58035116,69538.0,69510.0,0.53647242]
[1770478674267,0.001,69527.0,69510.0,0.53647242]
[1770478674864,0.001,69527.0,69518.0,0.28233966]
[1770478675168,0.001,69527.0,69511.0,0.30373625]
[1770478675968,0.014397,69527.0,69511.0,0.28933625]
[1770478676355,0.58035116,69530.0,69511.0,0.28933625]
[1770478676560,0.014397,69525.0,69511.0,0.28933625]
[1770478676759,0.014396,69528.0,69511.0,0.28933625]
[1770478676960,0.014397,69524.0,69511.0,0.28933625]
[1770478677360,0.014397,69527.0,69511.0,0.28933625]
[1770478677668,0.014398,69519.0,69511.0,0.28933625]
[1770478678166,0.014398,69519.0,69502.0,0.53647242]
[1770478678364,0.014396,69532.0,69498.0,0.014402]
[1770478678365,0.58035116,69527.0,69498.0,0.014402]
[1770478678668,0.58035116,69510.0,69497.0,0.0002]
[1770478678856,0.0144,69513.0,69497.0,0.0002]
[1770478679060,0.0144,69513.0,69494.0,0.014403]
[1770478679273,0.58035116,69518.0,69491.0,0.014404]
[1770478679566,0.58035116,69514.0,69484.0,0.53647242]
[1770478679760,0.58035116,69514.0,69496.0,0.53647242]
[1770478679761,0.014399,69514.0,69496.0,0.53647242]
[1770478679962,0.0144,69512.0,69496.0,0.53647242]
[1770478680356,0.58035116,69516.0,69490.0,0.29469294]
[1770478680563,0.014401,69504.0,69490.0,0.0002]
[1770478680763,0.014401,69507.0,69490.0,0.0002]
[1770478680968,0.014401,69505.0,69490.0,0.0002]
[1770478681168,0.014401,69505.0,69487.0,0.55087742]
[1770478681365,0.014398,69522.0,69501.0,0.53647242]
[1770478681557,0.014399,69517.0,69501.0,0.53647242]
[1770478681963,0.58035116,69525.0,69492.0,0.014404]
[1770478682162,0.0144,69512.0,69494.0,0.014403]
[1770478682360,0.0144,69512.0,69491.0,0.53647242]
[1770478683072,0.014397,69526.0,69490.0,0.28245436]
[1770478683073,0.014401,69508.0,69490.0,0.28245436]
[1770478683373,0.014401,69505.0,69486.0,0.014405]
[1770478683669,0.58035116,69514.0,69483.0,0.2855709]
[1770478683670,0.014402,69500.0,69483.0,0.2855709]
[1770478684167,0.014395,69536.0,69509.0,0.53647242]
[1770478684374,0.014396,69532.0,69513.0,0.014399]
[1770478685064,0.014396,69528.0,69509.0,0.53647242]
[1770478685559,0.59474716,69531.0,69509.0,0.53647242]
[1770478685766,0.1439,69579.0,69509.0,0.53647242]
[1770478685767,0.014394,69538.0,69518.0,0.014398]
[1770478686269,0.014394,69538.0,69509.0,0.53647242]
[1770478686270,0.014394,69539.0,69509.0,0.53647242]
[1770478686467,0.58035116,69543.0,69520.0,0.014398]
[1770478686667,0.014394,69539.0,69520.0,0.014398]
[1770478687070,0.014395,69537.0,69517.0,0.53984553]
[1770478687267,0.014395,69535.0,69513.0,0.014399]
[1770478687472,0.54637894,69537.0,69517.0,0.014398]
[1770478687878,0.014393,69542.0,69521.0,0.014398]
[1770478688174,0.014391,69556.0,69525.0,0.52544753]
[1770478688568,0.54637894,69557.0,69537.0,0.014394]
[1770478689277,0.56076894,69557.0,69534.0,0.014395]
[1770478689476,0.54637894,69557.0,69539.0,0.014394]
[1770478689678,0.54637894,69557.0,69541.0,0.014393]
[1770478690475,0.54637894,69557.0,69533.0,0.52544753]
[1770478690476,0.54637894,69557.0,69543.0,0.014393]
[1770478690677,0.57829573,69567.0,69546.0,0.014393]
[1770478690975,0.014389,69566.0,69546.0,0.014393]
[1770478691275,0.014386,69576.0,69551.0,0.5786773]
[1770478691677,0.014383,69594.0,69540.0,0.014394]
[1770478691678,0.014389,69562.0,69540.0,0.014394]
[1770478691875,0.59268473,69565.0,69542.0,0.014393]
[1770478692076,0.001,69557.0,69542.0,0.014393]
[1770478692275,0.001,69557.0,69542.0,0.5786773]
[1770478692476,0.014387,69573.0,69553.0,0.014391]
[1770478692671,0.014387,69573.0,69549.0,0.014392]
[1770478693077,0.014387,69573.0,69551.0,0.014391]
[1770478693782,0.014389,69563.0,69536.0,0.5786773]
[1770478694174,0.57829573,69577.0,69547.0,0.5786773]
[1770478694374,0.014387,69574.0,69551.0,0.014392]
[1770478694675,0.014387,69574.0,69553.0,0.5930683]
[1770478695071,0.014387,69574.0,69553.0,0.5786773]
[1770478695277,0.014387,69574.0,69553.0,0.5930683]
[1770478695474,0.014385,69582.0,69553.0,0.5786773]
[1770478695779,0.57829573,69585.0,69563.0,0.28716364]
[1770478696974,0.014386,69580.0,69563.0,0.28716364]
[1770478697577,0.014386,69580.0,69544.0,0.014393]
[1770478697578,0.57829573,69572.0,69544.0,0.5786773]
[1770478697776,0.014388,69567.0,69544.0,0.5930703]
[1770478698681,0.014389,69565.0,69536.0,0.5786773]
[1770478699279,0.014389,69565.0,69542.0,0.014393]
[1770478699672,0.014389,69563.0,69542.0,0.014393]
[1770478700075,0.01439,69561.0,69546.0,0.28619794]
[1770478700282,0.014389,69565.0,69546.0,0.28619794]
[1770478700670,0.57829573,69576.0,69547.0,0.5786773]
[1770478700988,0.014387,69574.0,69555.0,0.5930683]
[1770478701177,0.014386,69577.0,69557.0,0.01439]
[1770478701680,0.071907,69603.0,69555.0,0.5786773]
[1770478701681,0.57829573,69581.0,69555.0,0.5786773]
[1770478701977,0.014387,69574.0,69555.0,0.5786773]
[1770478702683,0.014387,69574.0,69555.0,0.5930683]
[1770478703382,0.014386,69578.0,69555.0,0.5930683]
[1770478703884,0.014386,69576.0,69555.0,0.5930683]
[1770478704484,0.57829573,69570.0,69546.0,0.28619794]
[1770478705077,0.57829573,69570.0,69546.0,0.86487524]
[1770478705283,0.014389,69565.0,69546.0,0.87926724]
[1770478705478,0.014388,69568.0,69548.0,0.014392]
[1770478705685,0.014388,69568.0,69548.0,0.5930693]
[1770478706480,0.57829573,69570.0,69546.0,0.28619794]
[1770478707382,0.57829573,69567.0,69546.0,0.28619794]
[1770478707773,0.01439,69559.0,69546.0,0.28619794]
[1770478708982,0.01439,69557.0,69546.0,0.28619794]
[1770478709681,0.01439,69560.0,69546.0,0.28619794]
[1770478710080,0.014388,69568.0,69547.0,0.5786773]
[1770478710379,0.014389,69565.0,69551.0,0.5786773]
[1770478710574,0.014388,69566.0,69551.0,0.5786773]
[1770478711583,0.014389,69564.0,69551.0,0.5786773]
[1770478711979,0.014389,69562.0,69546.0,0.28619794]
[1770478712184,0.014389,69565.0,69546.0,0.28619794]
[1770478712583,0.014389,69563.0,69546.0,0.28619794]
[1770478712980,0.01439,69561.0,69546.0,0.28619794]
[1770478714084,0.57829573,69574.0,69546.0,0.28619794]
[1770478714085,0.57829573,69571.0,69546.0,0.28619794]
[1770478714279,0.014391,69555.0,69546.0,0.28619794]
[1770478714783,0.014385,69582.0,69539.0,0.29336368]
[1770478714784,0.014392,69551.0,69539.0,0.29336368]
[1770478715192,0.014392,69547.0,69539.0,0.29336368]
[1770478716692,0.53930155,69558.0,69525.0,0.014397]
[1770478716892,0.53930155,69554.0,69524.0,0.52926874]
[1770478717093,0.014394,69538.0,69524.0,0.52926874]
[1770478717392,0.53930155,69548.0,69521.0,0.29280636]
[1770478717687,0.53930155,69545.0,69521.0,0.29280636]
[1770478717985,0.014391,69554.0,69506.0,0.54366974]
[1770478717986,0.53930155,69535.0,69506.0,0.54366974]
[1770478718191,0.014397,69526.0,69506.0,0.54366974]
[1770478718788,0.001,69554.0,69531.0,0.014396]
[1770478718990,0.014391,69553.0,69532.0,0.52926874]
[1770478719190,0.001,69554.0,69534.0,0.52926874]
[1770478719586,0.001,69545.0,69534.0,0.52926874]
[1770478720085,0.014391,69554.0,69534.0,0.52926874]
[1770478720284,0.53930155,69562.0,69534.0,0.54366374]
[1770478720489,0.014389,69561.0,69540.0,0.52926874]
[1770478720687,0.014389,69564.0,69542.0,0.52926874]
[1770478720883,0.53930155,69571.0,69542.0,0.52926874]
[1770478721088,0.014388,69569.0,69545.0,0.52926874]
[1770478721885,0.014388,69569.0,69547.0,0.52926874]
[1770478722081,0.014388,69566.0,69547.0,0.52926874]
[1770478722483,0.014386,69576.0,69547.0,0.52926874]
[1770478722687,0.01439,69560.0,69538.0,0.52926874]
[1770478722886,0.01439,69560.0,69539.0,0.014394]
[1770478723092,0.53930155,69566.0,69539.0,0.52926874]
[1770478723288,0.55368955,69566.0,69539.0,0.52926874]
[1770478723685,0.014391,69552.0,69539.0,0.52926874]
[1770478723892,0.014391,69553.0,69539.0,0.52926874]
[1770478724089,0.53930155,69559.0,69528.0,0.52926874]
[1770478724492,0.53930155,69555.0,69528.0,0.52926874]
[1770478724695,0.014394,69539.0,69521.0,0.29234223]
[1770478724998,0.014395,69537.0,69521.0,0.29234223]